bitfinex-derivatives/quotes_SOLF0:USTF0_20250714
["timestamp","ask_amount","ask_price","bid_price","bid_amount"]
[1752472646489,188.7,166.8,166.73,3.63]
[1752472646676,188.7,166.8,166.75,3.63]
[1752472647082,194.6931,166.8,166.75,5.9946]
[1752472647283,188.7,166.8,166.75,5.9946]
[1752472647483,188.7,166.8,166.78,3.63]
[1752472648387,194.6933,166.8,166.76,3.63]
[1752472648688,6.3262422,166.79,166.77,3.63]
[1752472649388,12.3197422,166.79,166.77,3.63]
[1752472649590,5.9935,166.79,166.77,3.63]
[1752472649782,5.9935,166.79,166.6,523.41895337]
[1752472649783,6.3262422,166.79,166.75,3.63]
[1752472649981,6.3262422,166.77,166.75,3.63]
[1752472650186,6.3262422,166.77,166.68,3.63]
[1752472650488,6.3262422,166.75,166.74,3.57]
[1752472651581,6.3262422,166.75,166.72,3.57]
[1752472652187,12.3212422,166.75,166.73,3.57]
[1752472652389,6.3262422,166.75,166.65,3.57]
[1752472652680,12.3212422,166.75,166.7,5.9964]
[1752472652882,12.3212422,166.75,166.72,3.57]
[1752472653087,12.3212422,166.75,166.73,3.57]
[1752472653492,5.9946,166.76,166.73,3.57]
[1752472653685,6.3262422,166.76,166.74,3.57]
[1752472653888,6.3262422,166.76,166.66,6.3262422]
[1752472654191,6.3262422,166.78,166.72,3.57]
[1752472656992,6.3262422,166.78,166.73,5.98440292]
[1752472657190,195.0262422,166.8,166.76,3.57]
[1752472657389,6.3262422,166.78,166.71,3.57]
[1752472657596,6.3262422,166.78,166.68,6.3262422]
[1752472657597,6.3262422,166.78,166.73,3.57]
[1752472657895,6.3262422,166.76,166.69,3.57]
[1752472658093,6.3262422,166.76,166.68,2.0]
[1752472658094,6.3262422,166.76,166.71,3.57]
[1752472658390,12.3201422,166.78,166.74,5.9952]
[1752472658595,6.3262422,166.78,166.76,3.57]
[1752472658794,6.3262422,166.78,166.75,3.57]
[1752472659595,6.3262422,166.78,166.76,3.57]
[1752472659996,188.7,166.8,166.76,3.57]
[1752472660491,188.7,166.8,166.76,9.5643]
[1752472660697,188.7,166.8,166.77,3.57]
[1752472660899,188.7,166.8,166.78,3.57]
[1752472661093,194.6934,166.8,166.78,3.57]
[1752472661298,188.7,166.8,166.78,3.57]
[1752472661500,188.7,166.8,166.76,3.57]
[1752472661696,6.3262422,166.79,166.76,3.57]
[1752472661893,6.3262422,166.79,166.73,3.57]
[1752472662095,6.3262422,166.77,166.74,9.57325756]
[1752472662298,12.3204422,166.77,166.74,3.57]
[1752472662597,12.3204422,166.77,166.75,3.57]
[1752472662903,5.9945,166.76,166.75,3.57]
[1752472663193,6.3262422,166.77,166.75,9.58538051]
[1752472663399,5.9948,166.76,166.73,3.57]
[1752472663596,5.9948,166.76,166.74,9.58606676]
[1752472663802,5.9948,166.76,166.75,6.01606676]
[1752472663997,5.9948,166.76,166.72,3.57]
[1752472663998,5.9948,166.76,166.73,3.57]
[1752472664301,5.9948,166.76,166.74,6.01630815]
[1752472664502,5.9948,166.76,166.75,6.01630815]
[1752472665296,541.05559979,166.84,166.76,3.57]
[1752472665502,6.3262422,166.79,166.77,3.57]
[1752472666799,6.3262422,166.79,166.68,6.3262422]
[1752472667004,6.3262422,166.79,166.65,4.99895337]
[1752472667005,6.3262422,166.81,166.71,3.57]
[1752472667200,6.3262422,166.81,166.73,3.57]
[1752472667401,6.3262422,166.81,166.75,3.57]
[1752472667601,6.3262422,166.81,166.77,3.57]
[1752472667800,6.3262422,166.81,166.78,6.02910039]
[1752472668000,6.3262422,166.81,166.77,3.57]
[1752472668201,6.3262422,166.79,166.78,6.03241004]
[1752472668405,12.3197422,166.79,166.78,6.03241004]
[1752472669010,9.79208629,166.79,166.78,6.03241004]
[1752472669508,5.9941,166.78,166.73,5.9954]
[1752472669702,3.79858629,166.77,166.76,3.57]
[1752472669899,3.79858629,166.77,166.76,9.60767987]
[1752472670303,3.79858629,166.77,166.69,3.79858629]
[1752472670304,192.01858629,166.77,166.65,4.99895337]
[1752472670513,3.79858629,166.73,166.66,3.57]
[1752472670806,188.22,166.77,166.66,3.79858629]
[1752472670807,3.79858629,166.74,166.66,3.79858629]
[1752472671007,3.79858629,166.74,166.73,3.57]
[1752472671807,3.79858629,166.76,166.73,3.57]
[1752472672112,3.79858629,166.76,166.69,3.57]
[1752472672412,3.79858629,166.76,166.74,3.57]
[1752472672613,3.79858629,166.76,166.75,3.57]
[1752472673407,3.79858629,166.76,166.73,5.9955]
[1752472673604,3.79858629,166.76,166.68,3.79858629]
[1752472674012,9.79318629,166.76,166.71,5.996]
[1752472674207,9.79318629,166.76,166.72,3.57]
[1752472674808,9.79318629,166.76,166.73,3.57]
[1752472675208,9.79318629,166.76,166.74,3.57]
[1752472675415,9.79318629,166.76,166.72,5.996]
[1752472675716,3.79858629,166.74,166.73,3.57]
[1752472676520,3.79858629,166.76,166.73,3.57]
[1752472676915,3.79858629,166.76,166.68,3.79858629]
[1752472676916,188.22,166.77,166.75,5.9949]
[1752472677221,188.22,166.77,166.76,3.57]
[1752472680916,191.81858629,166.81,166.73,3.79858629]
[1752472681117,191.81858629,166.81,166.79,3.42]
[1752472681420,3.79858629,166.8,166.77,3.42]
[1752472681621,3.79858629,166.78,166.77,3.42]
[1752472682721,3.79858629,166.78,166.77,9.55377832]
[1752472683623,3.79858629,166.78,166.77,3.42]
[1752472684023,3.79858629,166.8,166.77,15.81031157]
[1752472684315,3.79858629,166.8,166.78,15.81031157]
[1752472684519,8.78882683,166.82,166.8,3.42]
[1752472684718,187.92,166.81,166.8,3.42]
[1752472684919,187.92,166.81,166.8,15.81134123]
[1752472685119,193.9127,166.81,166.8,15.81134123]
[1752472685321,187.92,166.81,166.8,15.81134123]
[1752472685523,187.92,166.81,166.8,12.39134123]
[1752472685724,193.9127,166.81,166.8,12.39134123]
[1752472686023,193.9127,166.81,166.8,9.67869071]
[1752472686827,193.9127,166.81,166.8,6.25869071]
[1752472688520,5.9942,166.77,166.76,3.42]
[1752472688825,3.79858629,166.78,166.77,3.42]
[1752472689028,191.61858629,166.78,166.77,3.42]
[1752472689722,187.82,166.78,166.77,3.42]
[1752472696525,193.8138,166.78,166.77,3.42]
[1752472697127,187.64,166.83,166.75,3.42]
[1752472697323,3.79858629,166.82,166.75,3.42]
[1752472697527,5.993,166.81,166.77,5.994]
[1752472697721,5.993,166.81,166.78,3.42]
[1752472697921,5.993,166.81,166.79,6.10149324]
[1752472698126,5.993,166.81,166.74,3.79858629]
[1752472698127,9.79108629,166.82,166.81,3.42]
[1752472698327,9.79108629,166.82,166.81,9.52149324]
[1752472699028,3.79858629,166.82,166.81,9.52149324]
[1752472699228,193.6321,166.83,166.82,3.42]
[1752472699529,193.6321,166.83,166.82,9.52149324]
[1752472699731,187.64,166.83,166.82,9.52149324]
[1752472700531,187.64,166.83,166.82,15.65565779]
[1752472700727,8.78882683,166.86,166.83,3.42]
[1752472701033,187.52,166.85,166.84,15.65565779]
[1752472701233,193.5113,166.85,166.84,15.65565779]
[1752472701437,187.52,166.85,166.84,12.21897565]
[1752472701736,187.52,166.85,166.84,15.63897565]
[1752472702333,187.52,166.85,166.84,15.71186903]
[1752472703038,4.99024054,166.88,166.85,3.42]
[1752472703235,191.23858629,166.88,166.86,15.71186903]
[1752472703437,191.23858629,166.88,166.87,12.29186903]
[1752472703630,197.22878629,166.88,166.87,12.29186903]
[1752472704537,197.22878629,166.88,166.87,12.32864701]
[1752472705139,187.44,166.88,166.87,15.74864701]
[1752472707230,187.44,166.88,166.87,15.73802534]
[1752472710039,187.44,166.88,166.87,3.42]
[1752472710239,187.44,166.88,166.87,15.70474702]
[1752472710544,187.44,166.88,166.87,15.70124383]
[1752472710937,187.44,166.88,166.87,15.70124382]
[1752472713239,4.99024054,166.96,166.88,5.99]
[1752472713539,3.79858629,166.91,166.89,6.10031585]
[1752472713737,187.12,166.9,166.89,3.49]
[1752472713944,193.1095,166.9,166.89,9.58511622]
[1752472714543,193.1095,166.9,166.89,6.09511622]
[1752472714737,193.1095,166.9,166.87,3.49]
[1752472714738,187.12,166.9,166.85,3.49]
[1752472714945,187.12,166.9,166.86,15.75904489]
[1752472714946,3.79858629,166.87,166.86,15.75904489]
[1752472715447,9.78938629,166.87,166.86,12.26904489]
[1752472715639,3.79858629,166.88,166.87,3.49]
[1752472715843,3.79858629,166.88,166.87,6.09425423]
[1752472716038,5.9908,166.87,166.85,3.49]
[1752472716246,5.9908,166.87,166.86,9.58400812]
[1752472716646,9.78888629,166.88,166.87,3.49]
[1752472716846,9.78888629,166.88,166.87,9.58400812]
[1752472717248,5.9899,166.89,166.87,6.09400812]
[1752472717449,9.78848629,166.89,166.88,9.58400812]
[1752472718241,3.79858629,166.89,166.88,9.58400812]
[1752472718951,193.1096,166.9,166.88,6.09514796]
[1752472719250,187.12,166.9,166.89,9.58514796]
[1752472719449,187.12,166.9,166.89,9.58529585]
[1752472719951,193.1095,166.9,166.89,9.58529585]
[1752472721458,187.12,166.9,166.89,9.58529585]
[1752472721958,187.12,166.9,166.89,6.09529585]
[1752472722151,187.12,166.9,166.86,3.49]
[1752472722358,3.79858629,166.87,166.86,3.49]
[1752472722658,3.79858629,166.87,166.86,15.7660773]
[1752472723358,9.78918629,166.87,166.86,15.7660773]
[1752472723658,3.79858629,166.88,166.76,3.79858629]
[1752472723857,3.79858629,166.83,166.78,9.4836]
[1752472724152,3.79858629,166.88,166.8,3.49]
[1752472724153,3.79858629,166.81,166.8,3.49]
[1752472724351,9.79128629,166.81,166.8,9.66977283]
[1752472724548,9.79128629,166.81,166.8,6.17977283]
[1752472724757,5.9927,166.81,166.8,6.17977283]
[1752472724959,9.79128629,166.81,166.8,6.17977283]
[1752472725959,5.9935,166.79,166.72,3.49]
[1752472726159,192.7935,166.79,166.72,3.49]
[1752472726356,190.59858629,166.79,166.74,5.995]
[1752472726660,190.59858629,166.79,166.75,3.49]
[1752472726853,190.59858629,166.79,166.75,9.4846]
[1752472727053,190.59858629,166.79,166.76,3.49]
[1752472727457,186.8,166.79,166.76,3.49]
[1752472727956,4.96897256,166.86,166.8,3.49]
[1752472727957,186.78,166.84,166.8,3.49]
[1752472728558,190.57858629,166.84,166.78,3.49]
[1752472729056,186.78,166.84,166.78,3.49]
[1752472729358,186.78,166.84,166.79,5.9932]
[1752472729564,186.78,166.84,166.8,3.49]
[1752472730665,186.78,166.84,166.8,9.4831]
[1752472730962,186.78,166.84,166.81,3.49]
[1752472731158,192.7717,166.84,166.81,3.49]
[1752472732362,186.78,166.84,166.81,3.49]
[1752472733064,186.7,166.85,166.81,3.49]
[1752472734458,186.7,166.85,166.81,5.9926]
[1752472734664,186.7,166.85,166.82,3.49]
[1752472735670,186.7,166.85,166.84,3.49]
[1752472735870,186.7,166.85,166.84,9.49722669]
[1752472736369,186.7,166.85,166.84,9.49803097]
[1752472737859,186.7,166.85,166.84,9.49931766]
[1752472738063,186.7,166.85,166.84,15.55639614]
[1752472740373,517.74,166.88,166.85,3.63]
[1752472740573,517.74,166.88,166.84,18.05809614]
[1752472740574,186.48,166.88,166.87,3.63]
[1752472740775,186.48,166.88,166.87,15.69639614]
[1752472743472,186.48,166.88,166.87,12.06639614]
[1752472743777,190.27858629,166.88,166.87,15.69639614]
[1752472744271,190.27858629,166.88,166.87,15.70228473]
[1752472744477,190.27858629,166.88,166.87,15.70819793]
[1752472744772,190.27858629,166.88,166.87,12.07819793]
[1752472744973,196.26878629,166.88,166.87,12.07819793]
[1752472746283,186.48,166.88,166.87,15.70819793]
[1752472747578,192.4702,166.88,166.87,15.70819793]
[1752472747877,186.48,166.88,166.87,15.70819793]
[1752472748976,186.48,166.88,166.87,3.63]
[1752472749280,3.32,166.85,166.76,8.81540959]
[1752472749483,3.32,166.85,166.78,3.7942771]
[1752472749776,3.32,166.85,166.8,5.9928]
[1752472749978,186.48,166.88,166.76,8.81540959]
[1752472750285,3.7942771,166.86,166.82,5.9923]
[1752472750578,9.3106,166.87,166.82,5.9923]
[1752472750782,3.7942771,166.87,166.78,8.81540959]
[1752472750983,3.7942771,166.87,166.78,10.81540959]
[1752472751281,3.7942771,166.87,166.79,3.63]
[1752472751584,9.7848771,166.87,166.79,3.63]
[1752472751881,9.7848771,166.87,166.83,5.992]
[1752472752076,13.1048771,166.87,166.84,3.63]
[1752472752384,3.32,166.87,166.84,3.63]
[1752472752682,3.7942771,166.87,166.84,3.63]
[1752472753580,7.1142771,166.87,166.85,3.63]
[1752472753982,13.1049771,166.87,166.83,5.9919]
[1752472754283,13.1049771,166.87,166.86,3.63]
[1752472755084,7.1142771,166.87,166.86,3.63]
[1752472756385,3.32,166.87,166.86,3.63]
[1752472756685,7.1142771,166.87,166.86,3.63]
[1752472757180,3.7942771,166.87,166.86,3.63]
[1752472757783,186.48,166.88,166.86,3.63]
[1752472758286,186.48,166.88,166.8,2.0]
[1752472758287,189.8,166.88,166.87,3.63]
[1752472758488,193.5942771,166.88,166.87,3.63]
[1752472759784,199.5844771,166.88,166.84,5.9916]
[1752472759989,193.5942771,166.88,166.86,3.63]
[1752472760592,193.5942771,166.88,166.87,3.63]
[1752472760787,186.48,166.88,166.8,2.0]
[1752472760992,7.1142771,166.87,166.86,3.63]
[1752472761290,7.1142771,166.87,166.8,3.63]
[1752472761491,3.32,166.86,166.8,3.63]
[1752472762190,7.1142771,166.87,166.84,3.63]
[1752472762388,7.1142771,166.87,166.8,3.63]
[1752472762588,7.1142771,166.87,166.84,5.9915]
[1752472762887,3.7942771,166.87,166.85,3.63]
[1752472763285,185.86,166.88,166.86,3.63]
[1752472763984,185.86,166.88,166.87,3.63]
[1752472764293,3.32,166.9,166.87,5.9906]
[1752472764492,189.16,166.9,166.87,5.9906]
[1752472764693,189.16,166.9,166.89,3.63]
[1752472765794,189.16,166.9,166.89,9.65871478]
[1752472765995,189.16,166.9,166.89,15.73859637]
[1752472766194,189.16,166.9,166.89,9.70988159]
[1752472766696,189.16,166.9,166.89,6.07988159]
[1752472767094,189.16,166.9,166.87,5.9906]
[1752472767293,189.16,166.9,166.88,9.68657485]
[1752472767495,189.16,166.9,166.89,6.05657485]
[1752472767887,189.16,166.9,166.83,3.63]
[1752472767888,189.6342771,166.9,166.83,3.63]
[1752472768088,3.7942771,166.85,166.83,3.63]
[1752472768287,3.7942771,166.85,166.84,9.6217]
[1752472768790,3.7942771,166.85,166.84,3.63]
[1752472769291,3.7942771,166.85,166.84,9.6217]
[1752472769488,185.74,166.86,166.85,3.63]
[1752472769992,185.74,166.86,166.85,9.6213]
[1752472770693,185.74,166.86,166.85,15.80756603]
[1752472771892,185.74,166.86,166.85,9.81626603]
[1752472775702,185.74,166.86,166.85,3.63]
[1752472777105,191.7309,166.86,166.85,3.63]
[1752472777307,185.74,166.86,166.83,3.34]
[1752472777614,3.79389234,166.84,166.83,3.34]
[1752472778802,189.53511861,166.86,166.83,3.34]
[1752472779006,185.46,166.85,166.83,3.34]
[1752472779399,185.46,166.85,166.84,3.34]
[1752472779799,185.46,166.85,166.84,9.5158371]
[1752472780001,185.46,166.85,166.84,15.5075371]
[1752472780805,189.25511861,166.86,166.84,18.35972666]
[1752472781008,189.25511861,166.86,166.85,15.70802666]
[1752472781799,185.46,166.86,166.85,15.70802666]
[1752472782707,3.79511861,166.88,166.86,3.34]
[1752472782908,189.17511861,166.88,166.87,15.70802666]
[1752472783505,185.38,166.88,166.87,15.70802666]
[1752472783707,189.17511861,166.88,166.87,15.70802666]
[1752472784500,189.17511861,166.88,166.87,9.42456965]
[1752472784703,189.17511861,166.88,166.87,15.55722074]
[1752472784917,185.38,166.88,166.87,15.55722074]
[1752472785212,185.38,166.88,166.87,15.55713502]
[1752472785404,189.17511861,166.88,166.87,15.55713502]
[1752472786211,189.17345996,166.88,166.87,15.55713502]
[1752472786903,195.16365996,166.88,166.87,12.21713502]
[1752472787401,195.16365996,166.88,166.87,12.21749986]
[1752472789009,189.17345996,166.88,166.87,15.55749986]
[1752472789405,195.16365996,166.88,166.87,15.55749986]
[1752472789607,195.16365996,166.88,166.87,12.21749986]
[1752472790009,191.3702,166.88,166.87,12.21749986]
[1752472790204,195.16365996,166.88,166.87,6.13265109]
[1752472790411,195.16365996,166.88,166.87,12.21751562]
[1752472790602,195.16365996,166.88,166.87,6.08486453]
[1752472790807,192.96691992,166.88,166.84,3.34]
[1752472791013,3.79345996,166.85,166.84,3.34]
[1752472791313,188.95345996,166.85,166.75,8.81459245]
[1752472791604,3.79345996,166.83,166.82,3.34]
[1752472794008,188.95345996,166.85,166.82,3.34]
[1752472795115,194.94475996,166.85,166.82,3.34]
[1752472795416,188.95345996,166.85,166.83,3.34]
[1752472796814,185.02,166.85,166.8,3.34]
[1752472797825,185.02,166.85,166.84,3.34]
[1752472799018,185.02,166.85,166.84,9.3316]
[1752472800922,184.94,166.87,166.82,3.38]
[1752472801525,184.94,166.87,166.85,3.38]
[1752472802221,194.72405996,166.87,166.85,3.38]
[1752472802733,194.72405996,166.87,166.86,12.32094616]
[1752472802934,5.9913,166.85,166.84,3.38]
[1752472803129,184.94,166.87,166.76,5.02113249]
[1752472803322,184.94,166.87,166.77,3.38]
[1752472803323,3.79345996,166.83,166.77,3.38]
[1752472803527,3.79345996,166.83,166.8,5.9928]
[1752472803729,3.79345996,166.83,166.81,3.38]
[1752472804429,9.78545996,166.83,166.79,5.9934]
[1752472804733,3.79345996,166.81,166.77,3.38]
[1752472805134,3.79345996,166.81,166.77,9.3742]
[1752472805334,3.79345996,166.81,166.78,3.38]
[1752472805527,3.79345996,166.82,166.78,3.38]
[1752472806429,3.79345996,166.8,166.72,3.38]
[1752472806629,3.79345996,166.76,166.7,5.02113249]
[1752472806835,3.79345996,166.72,166.71,3.38]
[1752472807230,3.79345996,166.72,166.63,8.81459245]
[1752472807429,184.78,166.73,166.65,8.81459245]
[1752472807624,184.78,166.73,166.69,5.9968]
[1752472807828,194.54895996,166.74,166.7,3.38]
[1752472808236,5.9956,166.73,166.7,9.3765]
[1752472808428,188.55345996,166.74,166.65,3.79345996]
[1752472808429,184.76,166.74,166.71,3.38]
[1752472808629,184.76,166.74,166.72,5.9958]
[1752472808929,184.76,166.74,166.73,3.38]
[1752472809129,3.79345996,166.76,166.73,3.38]
[1752472809329,5.9952,166.75,166.73,3.38]
[1752472809730,184.74,166.76,166.73,3.38]
[1752472810537,188.53345996,166.79,166.73,3.38]
[1752472811033,190.7335,166.79,166.76,5.9945]
[1752472811236,190.7335,166.79,166.77,3.38]
[1752472811436,184.74,166.79,166.77,3.38]
[1752472811639,184.74,166.79,166.78,3.38]
[1752472812031,517.84,166.82,166.78,3.38]
[1752472812237,184.7,166.83,166.78,3.38]
[1752472812638,184.7,166.83,166.8,5.9928]
[1752472812832,184.7,166.83,166.81,3.38]
[1752472813336,184.7,166.83,166.82,3.38]
[1752472814428,184.7,166.83,166.82,9.3724]
[1752472814830,3.79345996,166.87,166.83,3.38]
[1752472815029,184.64,166.86,166.85,3.38]
[1752472815240,184.64,166.86,166.85,9.51353776]
[1752472816039,521.71345996,166.9,166.86,3.38]
[1752472816237,702.52,166.9,166.88,3.38]
[1752472816429,702.52,166.9,166.89,9.51353776]
[1752472816839,184.6,166.9,166.89,15.54281791]
[1752472817844,184.6,166.9,166.84,3.38]
[1752472818040,3.79345996,166.86,166.83,3.38]
[1752472818236,190.5315,166.85,166.84,3.38]
[1752472818743,184.54,166.85,166.84,3.38]
[1752472819442,190.5313,166.85,166.84,3.38]
[1752472819636,184.54,166.85,166.84,3.38]
[1752472821840,190.5313,166.85,166.84,3.38]
[1752472823143,188.33345996,166.85,166.78,3.38]
[1752472823644,5.992,166.83,166.78,3.38]
[1752472824248,368.72,166.86,166.83,3.38]
[1752472825042,372.51345996,166.86,166.83,3.38]
[1752472825235,368.72,166.86,166.83,3.38]
[1752472826342,368.72,166.86,166.79,3.79345996]
[1752472826343,368.72,166.86,166.84,3.38]
[1752472826745,374.7109,166.86,166.85,3.38]
[1752472827143,368.72,166.86,166.85,3.38]
[1752472827942,184.3,166.86,166.85,3.38]
[1752472828645,5.9903,166.88,166.85,3.38]
[1752472828849,184.3,166.87,166.85,3.38]
[1752472829148,184.28,166.86,166.85,3.38]
[1752472830040,5.9915,166.85,166.82,3.38]
[1752472830251,184.26,166.84,166.82,3.38]
[1752472831341,184.26,166.84,166.82,9.3721]
[1752472831543,5.991,166.86,166.83,3.51]
[1752472831743,184.24,166.85,166.84,3.51]
[1752472831943,184.24,166.85,166.82,5.9921]
[1752472832140,3.79345996,166.87,166.8,3.79345996]
[1752472832454,184.24,166.84,166.8,3.79345996]
[1752472832646,184.22,166.85,166.82,5.9921]
[1752472832842,184.22,166.85,166.83,3.51]
[1752472833044,5.9909,166.87,166.83,3.51]
[1752472833242,184.22,166.86,166.83,3.51]
[1752472833448,5.9909,166.86,166.84,3.51]
[1752472833646,184.22,166.85,166.84,3.51]
[1752472833950,188.01345996,166.85,166.78,3.51]
[1752472834153,3.79345996,166.8,166.78,3.51]
[1752472834354,184.2,166.79,166.78,3.51]
[1752472835053,184.2,166.79,166.75,3.51]
[1752472835248,517.78,166.83,166.75,3.51]
[1752472835458,5.9924,166.82,166.78,3.79409017]
[1752472835650,184.18,166.83,166.79,3.51]
[1752472836752,3.79632926,166.81,166.73,3.51]
[1752472837353,5.9935,166.79,166.75,5.9946]
[1752472837554,5.9935,166.79,166.76,3.51]
[1752472837848,5.9932,166.8,166.76,3.51]
[1752472838048,3.79632926,166.81,166.75,5.9946]
[1752472838253,3.79632926,166.81,166.72,3.79632926]
[1752472838452,3.79632926,166.79,166.73,3.51]
[1752472838755,3.79632926,166.77,166.73,3.51]
[1752472838958,190.1744,166.77,166.73,3.51]
[1752472839444,5.9948,166.76,166.74,3.51]
[1752472839647,6.33050508,166.76,166.74,3.51]
[1752472840056,12.32510508,166.76,166.74,3.51]
[1752472840251,6.33050508,166.76,166.74,3.51]
[1752472840453,6.33050508,166.76,166.73,3.51]
[1752472840949,5.9951,166.75,166.73,3.51]
[1752472841354,5.9952,166.74,166.73,3.51]
[1752472841556,12.32570508,166.74,166.73,3.51]
[1752472841765,6.33050508,166.74,166.71,3.51]
[1752472841960,5.9959,166.73,166.71,3.51]
[1752472842257,184.18,166.72,166.71,3.51]
[1752472843654,190.176,166.72,166.71,3.51]
[1752472843960,190.51397741,166.72,166.7,3.51]
[1752472844662,190.51397741,166.72,166.71,3.51]
[1752472845257,202.84795482,166.72,166.6,5.02296203]
[1752472845453,12.66795482,166.61,166.53,4.332e-05]
[1752472845657,12.66795482,166.61,166.36,7.5e-05]
[1752472845658,6.33397741,166.54,166.36,7.5e-05]
[1752472845850,6.33397741,166.49,166.37,3.51]
[1752472846250,6.33397741,166.49,166.35,6.33397741]
[1752472846558,517.96,166.6,166.43,6.33397741]
[1752472846858,6.33397741,166.56,166.44,3.51]
[1752472847266,6.33397741,166.57,166.46,6.33397741]
[1752472847457,6.33397741,166.57,166.47,3.51]
[1752472847756,386.68,166.59,166.48,3.51]
[1752472847954,193.18,166.58,166.52,6.33397741]
[1752472848357,193.18,166.58,166.4,6.33397741]
[1752472848860,6.33397741,166.57,166.41,3.51]
[1752472849062,6.33397741,166.55,166.46,3.51]
[1752472849756,6.33397741,166.53,166.46,3.51]
[1752472850057,6.33397741,166.51,166.47,3.51]
[1752472850256,6.33397741,166.49,166.42,3.51]
[1752472850754,6.0047,166.48,166.42,3.51]
[1752472850955,6.33397741,166.49,166.42,3.51]
[1752472851363,524.29397741,166.6,166.42,3.51]
[1752472851552,6.33397741,166.51,166.43,3.51]
[1752472851754,6.33397741,166.51,166.47,3.51]
[1752472851755,192.76,166.51,166.47,3.51]
[1752472851959,6.33397741,166.57,166.47,3.51]
[1752472852158,192.82,166.56,166.48,6.33397741]
[1752472852365,192.8,166.55,166.49,3.51]
[1752472852662,192.78,166.55,166.49,3.51]
[1752472852862,6.33397741,166.57,166.49,3.51]
[1752472853053,517.96,166.6,166.34,62.0]
[1752472853054,192.72,166.55,166.52,3.51]
[1752472853254,192.72,166.55,166.34,62.0]
[1752472853255,10.60732623,166.59,166.47,14.11732623]
[1752472853465,192.62,166.55,166.48,3.51]
[1752472853766,192.62,166.57,166.54,3.51]
[1752472853966,192.62,166.57,166.47,10.60732623]
[1752472854265,517.96,166.6,166.51,3.51]
[1752472854656,517.96,166.6,166.56,6.0015]
[1752472855156,517.96,166.6,166.5,3.51]
[1752472855761,192.36,166.59,166.53,3.51]
[1752472855965,192.36,166.59,166.55,6.0017]
[1752472856266,192.36,166.59,166.53,3.51]
[1752472857058,192.36,166.59,166.56,6.0017]
[1752472857264,192.36,166.59,166.57,3.51]
[1752472857467,192.36,166.59,166.58,3.51]
[1752472857661,517.96,166.6,166.58,3.51]
[1752472857964,517.96,166.6,166.59,3.51]
[1752472858267,710.0,166.6,166.59,3.51]
[1752472858465,517.96,166.6,166.59,3.51]
[1752472858976,709.8,166.6,166.59,3.51]
[1752472859263,517.96,166.6,166.59,3.51]
[1752472859659,709.7,166.6,166.59,3.51]
[1752472860563,709.6,166.6,166.59,3.51]
[1752472860762,517.96,166.6,166.59,9.5106]
[1752472860964,191.54,166.6,166.59,3.51]
[1752472861264,191.54,166.6,166.53,3.47]
[1752472861864,191.54,166.6,166.56,3.47]
[1752472862163,191.54,166.6,166.57,3.47]
[1752472862864,191.54,166.6,166.58,3.47]
[1752472863166,197.5404,166.6,166.58,3.47]
[1752472863370,197.5404,166.6,166.56,3.47]
[1752472863562,191.54,166.6,166.57,3.47]
[1752472863762,10.60732623,166.6,166.45,10.60732623]
[1752472864068,10.60732623,166.6,166.46,3.47]
[1752472864069,191.42,166.59,166.46,3.47]
[1752472864761,6.0002,166.61,166.56,6.0016]